[Event "Titled Tuesday Blitz October 31 Late 2023"]
[White "Jovic, Stanoje"]
[Black "Slavin, Alexey"]
[WhiteFideId "905020"]
[BlackFideId "24104388"]
[WhiteElo "2436"]
[BlackElo "2264"]
[Result "1-0"]
[Round "6"]
[TimeControl "180+1"]
[Date "2023.10.31"]
[WhiteClock "0:00:23"]
[BlackClock "0:00:00"]
[Board "105"]

1. c4 {[%clk 0:03:00]}  Nc6 {[%clk 0:02:59]} 2. g3 {[%clk 0:03:00]}  e5 {[%clk 0:02:59]} 3. Bg2 {[%clk 0:03:00]}  Nf6 {[%clk 0:02:59]} 4. Nf3 {[%clk 0:02:58]}  Bc5 {[%clk 0:02:57]} 5. O-O {[%clk 0:02:57]}  O-O {[%clk 0:02:57]} 6. Nxe5 {[%clk 0:02:57]}  Nxe5 {[%clk 0:02:53]} 7. d4 {[%clk 0:02:57]}  Nxc4 {[%clk 0:01:58]} 8. dxc5 {[%clk 0:02:55]}  Qe7 {[%clk 0:01:58]} 9. Qd4 {[%clk 0:02:37]}  Ne5 {[%clk 0:01:56]} 10. b4 {[%clk 0:02:29]}  a5 {[%clk 0:01:55]} 11. a3 {[%clk 0:02:23]}  Nc6 {[%clk 0:01:50]} 12. Bxc6 {[%clk 0:02:21]}  dxc6 {[%clk 0:01:48]} 13. Bg5 {[%clk 0:02:18]}  axb4 {[%clk 0:01:47]} 14. axb4 {[%clk 0:02:13]}  Rxa1 {[%clk 0:01:45]} 15. Qxa1 {[%clk 0:02:13]}  Qxe2 {[%clk 0:01:41]} 16. Nd2 {[%clk 0:01:53]}  Nd5 {[%clk 0:01:27]} 17. Re1 {[%clk 0:01:43]}  Qh5 {[%clk 0:01:26]} 18. h4 {[%clk 0:01:28]}  Nxb4 {[%clk 0:01:25]} 19. Qa5 {[%clk 0:01:19]}  Nd5 {[%clk 0:01:23]} 20. Qa4 {[%clk 0:01:08]}  h6 {[%clk 0:01:21]} 21. Bf4 {[%clk 0:01:06]}  Be6 {[%clk 0:01:09]} 22. Be5 {[%clk 0:01:00]}  Qg6 {[%clk 0:00:58]} 23. Rb1 {[%clk 0:00:51]}  Qd3 {[%clk 0:00:38]} 24. Qd4 {[%clk 0:00:48]}  Qxd4 {[%clk 0:00:25]} 25. Bxd4 {[%clk 0:00:48]}  Bc8 {[%clk 0:00:21]} 26. Ra1 {[%clk 0:00:45]}  Re8 {[%clk 0:00:19]} 27. Ra8 {[%clk 0:00:39]}  Kf8 {[%clk 0:00:19]} 28. Nc4 {[%clk 0:00:36]}  f6 {[%clk 0:00:17]} 29. Ne3 {[%clk 0:00:35]}  Nxe3 {[%clk 0:00:11]} 30. Bxe3 {[%clk 0:00:35]}  Be6 {[%clk 0:00:10]} 31. Ra7 {[%clk 0:00:33]}  Rb8 {[%clk 0:00:10]} 32. Bf4 {[%clk 0:00:30]}  Rc8 {[%clk 0:00:02]} 33. Rxb7 {[%clk 0:00:28]}  Ke7 {[%clk 0:00:03]} 34. Bxc7 {[%clk 0:00:26]}  Bd7 {[%clk 0:00:03]} 35. Bd6+ {[%clk 0:00:25]}  Ke6 {[%clk 0:00:00]} 36. Rb1 {[%clk 0:00:23]} 1-0


[Site "https://www.chess.com"]

[Event "Titled Tuesday Blitz October 31 Late 2023"]
[White "Mindhunter08"]
[Black "Djordjevic, Dejan N"]
[BlackFideId "913316"]
[WhiteElo "2428"]
[BlackElo "2045"]
[Result "1-0"]
[Round "6"]
[TimeControl "180+1"]
[Date "2023.10.31"]
[WhiteClock "0:00:57"]
[BlackClock "0:00:36"]
[Board "106"]

1. e4 {[%clk 0:02:45]}  c5 {[%clk 0:02:59]} 2. Nf3 {[%clk 0:02:42]}  Nc6 {[%clk 0:02:58]} 3. Bb5 {[%clk 0:02:33]}  g6 {[%clk 0:02:57]} 4. Bxc6 {[%clk 0:02:33]}  dxc6 {[%clk 0:02:57]} 5. d3 {[%clk 0:02:32]}  Bg7 {[%clk 0:02:57]} 6. Nc3 {[%clk 0:02:32]}  e5 {[%clk 0:02:57]} 7. Be3 {[%clk 0:02:33]}  b6 {[%clk 0:02:57]} 8. a4 {[%clk 0:02:28]}  a5 {[%clk 0:02:56]} 9. Nd2 {[%clk 0:02:28]}  Qc7 {[%clk 0:02:55]} 10. O-O {[%clk 0:02:28]}  Nf6 {[%clk 0:02:53]} 11. h3 {[%clk 0:02:28]}  O-O {[%clk 0:02:51]} 12. f4 {[%clk 0:02:25]}  exf4 {[%clk 0:02:45]} 13. Bxf4 {[%clk 0:02:26]}  Qb7 {[%clk 0:02:35]} 14. Nc4 {[%clk 0:02:25]}  Be6 {[%clk 0:02:33]} 15. Nd6 {[%clk 0:02:19]}  Qd7 {[%clk 0:02:29]} 16. Qf3 {[%clk 0:02:18]}  Ne8 {[%clk 0:02:11]} 17. e5 {[%clk 0:01:54]}  Nxd6 {[%clk 0:02:07]} 18. exd6 {[%clk 0:01:55]}  c4 {[%clk 0:02:06]} 19. Qg3 {[%clk 0:01:50]}  cxd3 {[%clk 0:01:44]} 20. cxd3 {[%clk 0:01:51]}  f5 {[%clk 0:01:43]} 21. Rae1 {[%clk 0:01:45]}  Rfe8 {[%clk 0:01:42]} 22. Re2 {[%clk 0:01:30]}  b5 {[%clk 0:01:41]} 23. axb5 {[%clk 0:01:16]}  cxb5 {[%clk 0:01:41]} 24. Rfe1 {[%clk 0:01:16]}  Rab8 {[%clk 0:01:18]} 25. Be5 {[%clk 0:01:04]}  b4 {[%clk 0:01:10]} 26. Bxg7 {[%clk 0:01:02]}  Kxg7 {[%clk 0:01:08]} 27. Nd5 {[%clk 0:01:00]}  Bxd5 {[%clk 0:00:59]} 28. Re7+ {[%clk 0:01:00]}  Rxe7 {[%clk 0:00:52]} 29. Rxe7+ {[%clk 0:00:59]}  Qxe7 {[%clk 0:00:42]} 30. dxe7 {[%clk 0:00:59]}  Re8 {[%clk 0:00:36]} 31. Qe5+ {[%clk 0:00:57]} 1-0


[Site "https://www.chess.com"]

[Event "Titled Tuesday Blitz October 31 Late 2023"]
[White "FuenfgegenWilly"]
[Black "HeroRubiksCube"]
[WhiteElo "2388"]
[BlackElo "2500"]
[Result "1-0"]
[Round "6"]
[TimeControl "180+1"]
[Date "2023.10.31"]
[WhiteClock "0:00:56"]
[BlackClock "0:00:04"]
[Board "108"]

1. Nf3 {[%clk 0:03:00]}  b6 {[%clk 0:02:59]} 2. e3 {[%clk 0:03:01]}  Bb7 {[%clk 0:02:59]} 3. c4 {[%clk 0:03:02]}  Nf6 {[%clk 0:02:59]} 4. b3 {[%clk 0:03:02]}  e6 {[%clk 0:02:58]} 5. Bb2 {[%clk 0:03:03]}  Be7 {[%clk 0:02:59]} 6. g3 {[%clk 0:03:03]}  O-O {[%clk 0:02:59]} 7. Bg2 {[%clk 0:03:03]}  d6 {[%clk 0:03:00]} 8. O-O {[%clk 0:03:04]}  Nbd7 {[%clk 0:03:00]} 9. d3 {[%clk 0:03:03]}  e5 {[%clk 0:03:00]} 10. Nc3 {[%clk 0:03:02]}  Qc8 {[%clk 0:02:48]} 11. Qe2 {[%clk 0:03:02]}  a6 {[%clk 0:02:48]} 12. Ne1 {[%clk 0:03:00]}  Bxg2 {[%clk 0:02:48]} 13. Nxg2 {[%clk 0:03:01]}  Qb7 {[%clk 0:02:48]} 14. f4 {[%clk 0:03:01]}  Rfe8 {[%clk 0:02:43]} 15. g4 {[%clk 0:02:58]}  exf4 {[%clk 0:02:36]} 16. exf4 {[%clk 0:02:59]}  Bf8 {[%clk 0:02:34]} 17. Qd1 {[%clk 0:02:54]}  Nb8 {[%clk 0:01:52]} 18. g5 {[%clk 0:02:53]}  Nfd7 {[%clk 0:01:53]} 19. Nd5 {[%clk 0:02:51]}  c6 {[%clk 0:01:48]} 20. Nde3 {[%clk 0:02:51]}  d5 {[%clk 0:01:48]} 21. Nf5 {[%clk 0:02:46]}  c5 {[%clk 0:01:39]} 22. Qg4 {[%clk 0:02:41]}  d4 {[%clk 0:01:36]} 23. Rae1 {[%clk 0:02:34]}  Nc6 {[%clk 0:01:35]} 24. a3 {[%clk 0:02:30]}  Na5 {[%clk 0:01:23]} 25. b4 {[%clk 0:02:28]}  Nc6 {[%clk 0:01:16]} 26. Ngh4 {[%clk 0:02:22]}  g6 {[%clk 0:01:01]} 27. Nh6+ {[%clk 0:02:12]}  Bxh6 {[%clk 0:01:01]} 28. gxh6 {[%clk 0:02:13]}  Nf6 {[%clk 0:00:58]} 29. Qg5 {[%clk 0:02:11]}  Nh5 {[%clk 0:00:49]} 30. f5 {[%clk 0:02:09]}  Qd7 {[%clk 0:00:35]} 31. fxg6 {[%clk 0:02:02]}  fxg6 {[%clk 0:00:35]} 32. Nxg6 {[%clk 0:02:00]}  hxg6 {[%clk 0:00:35]} 33. Qxg6+ {[%clk 0:01:59]}  Kh8 {[%clk 0:00:36]} 34. Qxh5 {[%clk 0:01:56]}  Rxe1 {[%clk 0:00:35]} 35. Rxe1 {[%clk 0:01:55]}  Rg8+ {[%clk 0:00:35]} 36. Kh1 {[%clk 0:01:55]}  Qd6 {[%clk 0:00:16]} 37. bxc5 {[%clk 0:01:48]}  bxc5 {[%clk 0:00:17]} 38. Bc1 {[%clk 0:01:45]}  Qf6 {[%clk 0:00:12]} 39. h7 {[%clk 0:01:36]}  Rf8 {[%clk 0:00:07]} 40. Bh6 {[%clk 0:01:30]}  Qf3+ {[%clk 0:00:06]} 41. Qxf3 {[%clk 0:01:29]}  Rxf3 {[%clk 0:00:07]} 42. Re6 {[%clk 0:01:18]}  Na5 {[%clk 0:00:07]} 43. Rxa6 {[%clk 0:01:18]}  Nb3 {[%clk 0:00:07]} 44. Ra7 {[%clk 0:01:15]}  Rh3 {[%clk 0:00:07]} 45. Bf4 {[%clk 0:01:14]}  Rxh7 {[%clk 0:00:04]} 46. Be5+ {[%clk 0:01:07]}  Kg8 {[%clk 0:00:04]} 47. Ra8+ {[%clk 0:01:03]}  Kf7 {[%clk 0:00:04]} 48. Ra7+ {[%clk 0:01:03]}  Kg6 {[%clk 0:00:04]} 49. Rxh7 {[%clk 0:01:04]}  Kxh7 {[%clk 0:00:05]} 50. Bd6 {[%clk 0:01:05]}  Kg7 {[%clk 0:00:05]} 51. a4 {[%clk 0:01:05]}  Kf6 {[%clk 0:00:05]} 52. a5 {[%clk 0:01:03]}  Ke6 {[%clk 0:00:04]} 53. a6 {[%clk 0:00:56]} 1-0


[Site "https://www.chess.com"]

[Event "Titled Tuesday Blitz October 31 Late 2023"]
[White "Nikolova, Adriana"]
[Black "Pinero Rodriguez, Carlos Jose"]
[WhiteFideId "2908689"]
[BlackFideId "3901726"]
[WhiteElo "2386"]
[BlackElo "2492"]
[Result "1-0"]
[Round "6"]
[TimeControl "180+1"]
[Date "2023.10.31"]
[WhiteClock "0:00:04"]
[BlackClock "0:00:00"]
[Board "109"]

1. e4 {[%clk 0:03:00]}  c5 {[%clk 0:02:59]} 2. Nf3 {[%clk 0:02:58]}  Nc6 {[%clk 0:02:59]} 3. d4 {[%clk 0:02:59]}  cxd4 {[%clk 0:02:59]} 4. Nxd4 {[%clk 0:02:59]}  g6 {[%clk 0:03:00]} 5. Nc3 {[%clk 0:02:57]}  Bg7 {[%clk 0:03:00]} 6. Be3 {[%clk 0:02:58]}  Nf6 {[%clk 0:03:00]} 7. Bc4 {[%clk 0:02:58]}  O-O {[%clk 0:02:59]} 8. Bb3 {[%clk 0:02:59]}  d6 {[%clk 0:02:59]} 9. f3 {[%clk 0:02:58]}  Bd7 {[%clk 0:02:59]} 10. Qd2 {[%clk 0:02:57]}  Nxd4 {[%clk 0:03:00]} 11. Bxd4 {[%clk 0:02:56]}  b5 {[%clk 0:03:00]} 12. Nd5 {[%clk 0:02:55]}  e6 {[%clk 0:02:41]} 13. Nxf6+ {[%clk 0:02:42]}  Bxf6 {[%clk 0:02:40]} 14. Bxf6 {[%clk 0:02:42]}  Qxf6 {[%clk 0:02:40]} 15. c3 {[%clk 0:02:42]}  a5 {[%clk 0:02:30]} 16. Qxd6 {[%clk 0:02:31]}  Rfd8 {[%clk 0:02:29]} 17. Qb6 {[%clk 0:02:25]}  a4 {[%clk 0:02:23]} 18. Bc2 {[%clk 0:02:08]}  a3 {[%clk 0:02:16]} 19. Qd4 {[%clk 0:02:05]}  axb2 {[%clk 0:02:15]} 20. Rb1 {[%clk 0:02:04]}  e5 {[%clk 0:02:07]} 21. Qe3 {[%clk 0:01:54]}  Rxa2 {[%clk 0:02:04]} 22. O-O {[%clk 0:01:53]}  Be6 {[%clk 0:01:56]} 23. Bd3 {[%clk 0:01:28]}  Rxd3 {[%clk 0:01:43]} 24. Qxd3 {[%clk 0:01:02]}  Bc4 {[%clk 0:01:42]} 25. Qc2 {[%clk 0:00:52]}  Bxf1 {[%clk 0:01:39]} 26. Kxf1 {[%clk 0:00:53]}  Qf4 {[%clk 0:01:15]} 27. Rxb2 {[%clk 0:00:42]}  Ra1+ {[%clk 0:01:08]} 28. Rb1 {[%clk 0:00:40]}  Ra8 {[%clk 0:00:54]} 29. h3 {[%clk 0:00:24]}  Qe3 {[%clk 0:00:43]} 30. Re1 {[%clk 0:00:17]}  Qc5 {[%clk 0:00:41]} 31. Rc1 {[%clk 0:00:14]}  Qc4+ {[%clk 0:00:39]} 32. Qe2 {[%clk 0:00:14]}  Qc5 {[%clk 0:00:33]} 33. Qf2 {[%clk 0:00:11]}  Qc4+ {[%clk 0:00:29]} 34. Qe2 {[%clk 0:00:12]}  Qc6 {[%clk 0:00:29]} 35. Qd3 {[%clk 0:00:12]}  Rc8 {[%clk 0:00:27]} 36. Rb1 {[%clk 0:00:12]}  Qxc3 {[%clk 0:00:23]} 37. Qxc3 {[%clk 0:00:12]}  Rxc3 {[%clk 0:00:22]} 38. Rxb5 {[%clk 0:00:13]}  f6 {[%clk 0:00:21]} 39. Kf2 {[%clk 0:00:13]}  Rc2+ {[%clk 0:00:19]} 40. Kg3 {[%clk 0:00:13]}  Rc6 {[%clk 0:00:19]} 41. Rb7 {[%clk 0:00:13]}  Rd6 {[%clk 0:00:18]} 42. h4 {[%clk 0:00:14]}  Rc6 {[%clk 0:00:17]} 43. Ra7 {[%clk 0:00:15]}  Rd6 {[%clk 0:00:17]} 44. Kh3 {[%clk 0:00:15]}  Rc6 {[%clk 0:00:16]} 45. h5 {[%clk 0:00:16]}  f5 {[%clk 0:00:12]} 46. exf5 {[%clk 0:00:14]}  gxf5 {[%clk 0:00:11]} 47. Re7 {[%clk 0:00:13]}  Rc5 {[%clk 0:00:11]} 48. Kh4 {[%clk 0:00:13]}  h6 {[%clk 0:00:10]} 49. Re6 {[%clk 0:00:12]}  Kg7 {[%clk 0:00:10]} 50. Rg6+ {[%clk 0:00:12]}  Kh7 {[%clk 0:00:10]} 51. Rf6 {[%clk 0:00:13]}  e4 {[%clk 0:00:09]} 52. fxe4 {[%clk 0:00:11]}  fxe4 {[%clk 0:00:09]} 53. Re6 {[%clk 0:00:11]}  Rc4 {[%clk 0:00:09]} 54. g3 {[%clk 0:00:08]}  Kg7 {[%clk 0:00:07]} 55. Rg6+ {[%clk 0:00:07]}  Kh7 {[%clk 0:00:06]} 56. Re6 {[%clk 0:00:08]}  Kg7 {[%clk 0:00:05]} 57. Kg4 {[%clk 0:00:08]}  e3+ {[%clk 0:00:04]} 58. Kf3 {[%clk 0:00:08]}  Rc5 {[%clk 0:00:04]} 59. g4 {[%clk 0:00:09]}  Rc3 {[%clk 0:00:03]} 60. Rg6+ {[%clk 0:00:08]}  Kh7 {[%clk 0:00:03]} 61. Re6 {[%clk 0:00:09]}  Kg7 {[%clk 0:00:02]} 62. Rxe3 {[%clk 0:00:03]}  Rc5 {[%clk 0:00:01]} 63. Re4 {[%clk 0:00:03]}  Rd5 {[%clk 0:00:00]} 64. Kf4 {[%clk 0:00:04]}  Rc5 {[%clk 0:00:00]} 65. Re7+ {[%clk 0:00:04]} 1-0


[Site "https://www.chess.com"]

[Event "Titled Tuesday Blitz October 31 Late 2023"]
[White "Wanyama, Harold"]
[Black "Martinez, Shawn"]
[WhiteFideId "10000380"]
[BlackFideId "2039770"]
[WhiteElo "2442"]
[BlackElo "2361"]
[Result "1-0"]
[Round "6"]
[TimeControl "180+1"]
[Date "2023.10.31"]
[WhiteClock "0:00:18"]
[BlackClock "0:00:00"]
[Board "111"]

1. d4 {[%clk 0:02:54]}  g6 {[%clk 0:02:56]} 2. c4 {[%clk 0:02:48]}  Bg7 {[%clk 0:02:55]} 3. Nc3 {[%clk 0:02:45]}  d6 {[%clk 0:02:55]} 4. g3 {[%clk 0:02:37]}  h6 {[%clk 0:02:54]} 5. Bg2 {[%clk 0:02:36]}  e6 {[%clk 0:02:53]} 6. Nf3 {[%clk 0:02:37]}  Ne7 {[%clk 0:02:54]} 7. O-O {[%clk 0:02:37]}  O-O {[%clk 0:02:52]} 8. e4 {[%clk 0:02:37]}  b6 {[%clk 0:02:47]} 9. Rb1 {[%clk 0:02:27]}  Bb7 {[%clk 0:02:46]} 10. b4 {[%clk 0:02:25]}  a6 {[%clk 0:02:45]} 11. Re1 {[%clk 0:02:23]}  Nd7 {[%clk 0:02:45]} 12. Qc2 {[%clk 0:02:21]}  Qc8 {[%clk 0:02:36]} 13. d5 {[%clk 0:02:17]}  e5 {[%clk 0:02:27]} 14. Bh3 {[%clk 0:02:11]}  Qd8 {[%clk 0:02:13]} 15. Ba3 {[%clk 0:02:05]}  a5 {[%clk 0:02:07]} 16. Bxd7 {[%clk 0:01:46]}  Qxd7 {[%clk 0:02:05]} 17. c5 {[%clk 0:01:43]}  axb4 {[%clk 0:01:19]} 18. c6 {[%clk 0:01:40]}  Bxc6 {[%clk 0:01:19]} 19. dxc6 {[%clk 0:01:39]}  Qg4 {[%clk 0:01:18]} 20. Bxb4 {[%clk 0:01:33]}  Qxf3 {[%clk 0:01:15]} 21. Nb5 {[%clk 0:01:28]}  Rac8 {[%clk 0:01:08]} 22. a4 {[%clk 0:01:23]}  f5 {[%clk 0:01:04]} 23. a5 {[%clk 0:01:15]}  bxa5 {[%clk 0:00:59]} 24. Bxa5 {[%clk 0:01:14]}  fxe4 {[%clk 0:00:58]} 25. Rxe4 {[%clk 0:01:02]}  d5 {[%clk 0:00:54]} 26. Re3 {[%clk 0:01:01]}  Qf6 {[%clk 0:00:42]} 27. Bb4 {[%clk 0:00:55]}  Rf7 {[%clk 0:00:37]} 28. Bxe7 {[%clk 0:00:52]}  Rxe7 {[%clk 0:00:34]} 29. Ra3 {[%clk 0:00:46]}  Kh7 {[%clk 0:00:30]} 30. Ra7 {[%clk 0:00:39]}  e4 {[%clk 0:00:28]} 31. Rd1 {[%clk 0:00:36]}  Qf5 {[%clk 0:00:21]} 32. Qc5 {[%clk 0:00:30]}  Rf7 {[%clk 0:00:19]} 33. Rd2 {[%clk 0:00:24]}  d4 {[%clk 0:00:13]} 34. Qxf5 {[%clk 0:00:22]}  Rxf5 {[%clk 0:00:12]} 35. Nxd4 {[%clk 0:00:20]}  Rd5 {[%clk 0:00:10]} 36. Nb3 {[%clk 0:00:20]}  Rxd2 {[%clk 0:00:05]} 37. Nxd2 {[%clk 0:00:20]}  Be5 {[%clk 0:00:04]} 38. Nxe4 {[%clk 0:00:19]}  Rd8 {[%clk 0:00:04]} 39. Kg2 {[%clk 0:00:19]}  Rd1 {[%clk 0:00:00]} 40. f4 {[%clk 0:00:18]} 1-0


[Site "https://www.chess.com"]

[Event "Titled Tuesday Blitz October 31 Late 2023"]
[White "Martinez Reyes, Pedro Ramon"]
[Black "Romero Ruscalleda, Josep"]
[WhiteFideId "3901807"]
[BlackFideId "2231859"]
[WhiteElo "2613"]
[BlackElo "2304"]
[Result "1/2-1/2"]
[Round "6"]
[TimeControl "180+1"]
[Date "2023.10.31"]
[WhiteClock "0:00:24"]
[BlackClock "0:00:12"]
[Board "120"]

1. d4 {[%clk 0:02:56]}  g6 {[%clk 0:03:00]} 2. c4 {[%clk 0:02:55]}  Bg7 {[%clk 0:03:01]} 3. Nf3 {[%clk 0:02:53]}  d6 {[%clk 0:03:01]} 4. Nc3 {[%clk 0:02:53]}  Bg4 {[%clk 0:03:00]} 5. e3 {[%clk 0:02:52]}  Nc6 {[%clk 0:03:00]} 6. Be2 {[%clk 0:02:52]}  e5 {[%clk 0:03:00]} 7. Nxe5 {[%clk 0:02:44]}  dxe5 {[%clk 0:02:50]} 8. Bxg4 {[%clk 0:02:43]}  exd4 {[%clk 0:02:51]} 9. Nd5 {[%clk 0:02:41]}  Nf6 {[%clk 0:02:45]} 10. Nxf6+ {[%clk 0:02:28]}  Qxf6 {[%clk 0:02:34]} 11. O-O {[%clk 0:01:59]}  O-O {[%clk 0:02:32]} 12. Bf3 {[%clk 0:01:52]}  Rad8 {[%clk 0:02:19]} 13. Bd5 {[%clk 0:01:39]}  Ne7 {[%clk 0:02:08]} 14. exd4 {[%clk 0:01:34]}  Nxd5 {[%clk 0:02:07]} 15. cxd5 {[%clk 0:01:33]}  Qxd4 {[%clk 0:02:05]} 16. Be3 {[%clk 0:01:27]}  Qxd5 {[%clk 0:02:03]} 17. Qc2 {[%clk 0:01:23]}  Qa5 {[%clk 0:01:49]} 18. b4 {[%clk 0:01:21]}  Qa6 {[%clk 0:01:38]} 19. Rab1 {[%clk 0:01:16]}  c6 {[%clk 0:01:37]} 20. a4 {[%clk 0:01:16]}  Qd3 {[%clk 0:01:34]} 21. Qxd3 {[%clk 0:01:16]}  Rxd3 {[%clk 0:01:34]} 22. Bxa7 {[%clk 0:01:17]}  Ra8 {[%clk 0:01:17]} 23. Be3 {[%clk 0:01:17]}  Rxa4 {[%clk 0:01:16]} 24. b5 {[%clk 0:01:18]}  Bd4 {[%clk 0:01:13]} 25. bxc6 {[%clk 0:01:15]}  bxc6 {[%clk 0:01:12]} 26. Bh6 {[%clk 0:01:14]}  Ra8 {[%clk 0:01:03]} 27. Rb7 {[%clk 0:01:14]}  Bg7 {[%clk 0:00:58]} 28. Be3 {[%clk 0:01:13]}  Rc8 {[%clk 0:00:56]} 29. Rc1 {[%clk 0:01:10]}  f5 {[%clk 0:00:52]} 30. Kf1 {[%clk 0:01:10]}  Rd5 {[%clk 0:00:46]} 31. Ke2 {[%clk 0:01:00]}  c5 {[%clk 0:00:45]} 32. Rb5 {[%clk 0:00:59]}  Bf8 {[%clk 0:00:45]} 33. Rc4 {[%clk 0:00:58]}  Kf7 {[%clk 0:00:44]} 34. Rb7+ {[%clk 0:00:58]}  Kg8 {[%clk 0:00:44]} 35. h4 {[%clk 0:00:54]}  Re8 {[%clk 0:00:37]} 36. Kf3 {[%clk 0:00:54]}  Rd3 {[%clk 0:00:34]} 37. g4 {[%clk 0:00:49]}  fxg4+ {[%clk 0:00:25]} 38. Kxg4 {[%clk 0:00:50]}  Bd6 {[%clk 0:00:19]} 39. h5 {[%clk 0:00:49]}  gxh5+ {[%clk 0:00:18]} 40. Kxh5 {[%clk 0:00:50]}  Re5+ {[%clk 0:00:18]} 41. Kh4 {[%clk 0:00:46]}  Re7 {[%clk 0:00:18]} 42. Rb6 {[%clk 0:00:42]}  Re6 {[%clk 0:00:15]} 43. Rg4+ {[%clk 0:00:41]}  Kf7 {[%clk 0:00:15]} 44. Rb7+ {[%clk 0:00:40]}  Be7+ {[%clk 0:00:15]} 45. Kg3 {[%clk 0:00:38]}  h5 {[%clk 0:00:15]} 46. Rf4+ {[%clk 0:00:37]}  Rf6 {[%clk 0:00:15]} 47. Re4 {[%clk 0:00:38]}  Rg6+ {[%clk 0:00:14]} 48. Kf3 {[%clk 0:00:37]}  Rf6+ {[%clk 0:00:13]} 49. Ke2 {[%clk 0:00:37]}  Rxe3+ {[%clk 0:00:11]} 50. fxe3 {[%clk 0:00:33]}  Re6 {[%clk 0:00:12]} 51. Rf4+ {[%clk 0:00:30]}  Kg6 {[%clk 0:00:11]} 52. Kf3 {[%clk 0:00:29]}  Bd6 {[%clk 0:00:11]} 53. Ra4 {[%clk 0:00:26]}  Rf6+ {[%clk 0:00:11]} 54. Ke4 {[%clk 0:00:26]}  h4 {[%clk 0:00:11]} 55. Kd5 {[%clk 0:00:26]}  h3 {[%clk 0:00:12]} 56. e4 {[%clk 0:00:16]}  h2 {[%clk 0:00:12]} 57. Ra1 {[%clk 0:00:16]}  Bg3 {[%clk 0:00:12]} 58. Rh1 {[%clk 0:00:15]}  Rd6+ {[%clk 0:00:08]} 59. Kxc5 {[%clk 0:00:15]}  Rd2 {[%clk 0:00:08]} 60. Rb3 {[%clk 0:00:12]}  Bf2+ {[%clk 0:00:07]} 61. Kc4 {[%clk 0:00:12]}  Bg1 {[%clk 0:00:07]} 62. e5 {[%clk 0:00:12]}  Kf5 {[%clk 0:00:08]} 63. Rb5 {[%clk 0:00:11]}  Ke6 {[%clk 0:00:07]} 64. Kc3 {[%clk 0:00:10]}  Rd5 {[%clk 0:00:07]} 65. Rb6+ {[%clk 0:00:09]}  Kxe5 {[%clk 0:00:07]} 66. Rh6 {[%clk 0:00:10]}  Rd7 {[%clk 0:00:05]} 67. Rh4 {[%clk 0:00:10]}  Kf5 {[%clk 0:00:05]} 68. Kc2 {[%clk 0:00:09]}  Kg5 {[%clk 0:00:05]} 69. Rh3 {[%clk 0:00:09]}  Kg4 {[%clk 0:00:05]} 70. Rh8 {[%clk 0:00:09]}  Kg3 {[%clk 0:00:05]} 71. Rg8+ {[%clk 0:00:09]}  Kf3 {[%clk 0:00:05]} 72. Kc3 {[%clk 0:00:08]}  Rc7+ {[%clk 0:00:05]} 73. Kb3 {[%clk 0:00:08]}  Rc5 {[%clk 0:00:05]} 74. Rgxg1 {[%clk 0:00:08]}  hxg1=Q {[%clk 0:00:05]} 75. Rxg1 {[%clk 0:00:08]}  Ke4 {[%clk 0:00:05]} 76. Re1+ {[%clk 0:00:08]}  Kf5 {[%clk 0:00:05]} 77. Kb4 {[%clk 0:00:09]}  Rc7 {[%clk 0:00:05]} 78. Rf1+ {[%clk 0:00:09]}  Ke4 {[%clk 0:00:05]} 79. Kb3 {[%clk 0:00:09]}  Rc6 {[%clk 0:00:05]} 80. Rf8 {[%clk 0:00:10]}  Rc7 {[%clk 0:00:06]} 81. Rf1 {[%clk 0:00:10]}  Rc6 {[%clk 0:00:06]} 82. Rf7 {[%clk 0:00:10]}  Rc5 {[%clk 0:00:05]} 83. Kb4 {[%clk 0:00:10]}  Rc1 {[%clk 0:00:05]} 84. Rf2 {[%clk 0:00:10]}  Rb1+ {[%clk 0:00:05]} 85. Kc3 {[%clk 0:00:10]}  Rc1+ {[%clk 0:00:06]} 86. Kd2 {[%clk 0:00:10]}  Rc8 {[%clk 0:00:06]} 87. Rh2 {[%clk 0:00:11]}  Ke5 {[%clk 0:00:07]} 88. Ke3 {[%clk 0:00:11]}  Kf5 {[%clk 0:00:07]} 89. Kf3 {[%clk 0:00:11]}  Kg5 {[%clk 0:00:07]} 90. Rb2 {[%clk 0:00:11]}  Kf5 {[%clk 0:00:08]} 91. Rb5+ {[%clk 0:00:11]}  Ke6 {[%clk 0:00:08]} 92. Ke4 {[%clk 0:00:11]}  Rc4+ {[%clk 0:00:08]} 93. Kd3 {[%clk 0:00:12]}  Rh4 {[%clk 0:00:08]} 94. Rb6+ {[%clk 0:00:12]}  Kd5 {[%clk 0:00:08]} 95. Rb5+ {[%clk 0:00:13]}  Kd6 {[%clk 0:00:09]} 96. Rg5 {[%clk 0:00:13]}  Ke6 {[%clk 0:00:09]} 97. Ke3 {[%clk 0:00:13]}  Kd6 {[%clk 0:00:09]} 98. Ra5 {[%clk 0:00:14]}  Ke6 {[%clk 0:00:10]} 99. Kf3 {[%clk 0:00:14]}  Kd6 {[%clk 0:00:10]} 100. Rb5 {[%clk 0:00:14]}  Ra4 {[%clk 0:00:10]} 101. Kg3 {[%clk 0:00:15]}  Kc6 {[%clk 0:00:10]} 102. Rb3 {[%clk 0:00:16]}  Kd5 {[%clk 0:00:10]} 103. Rd3+ {[%clk 0:00:16]}  Ke5 {[%clk 0:00:10]} 104. Rd8 {[%clk 0:00:16]}  Kf5 {[%clk 0:00:10]} 105. Rf8+ {[%clk 0:00:16]}  Ke6 {[%clk 0:00:11]} 106. Rh8 {[%clk 0:00:17]}  Kf6 {[%clk 0:00:11]} 107. Rh6+ {[%clk 0:00:17]}  Kg5 {[%clk 0:00:11]} 108. Rb6 {[%clk 0:00:18]}  Ra3+ {[%clk 0:00:11]} 109. Kf2 {[%clk 0:00:19]}  Kf4 {[%clk 0:00:11]} 110. Rb4+ {[%clk 0:00:19]}  Ke5 {[%clk 0:00:12]} 111. Rb2 {[%clk 0:00:20]}  Kd5 {[%clk 0:00:12]} 112. Re2 {[%clk 0:00:20]}  Kd4 {[%clk 0:00:12]} 113. Ke1 {[%clk 0:00:20]}  Kd3 {[%clk 0:00:12]} 114. Kf2 {[%clk 0:00:20]}  Ra4 {[%clk 0:00:11]} 115. Re3+ {[%clk 0:00:20]}  Kd4 {[%clk 0:00:11]} 116. Kf3 {[%clk 0:00:21]}  Ra5 {[%clk 0:00:11]} 117. Re4+ {[%clk 0:00:22]}  Kd5 {[%clk 0:00:12]} 118. Kf4 {[%clk 0:00:22]}  Ra1 {[%clk 0:00:12]} 119. Re5+ {[%clk 0:00:22]}  Kd4 {[%clk 0:00:11]} 120. Re8 {[%clk 0:00:23]}  Rf1+ {[%clk 0:00:11]} 121. Kg3 {[%clk 0:00:24]}  Rg1+ {[%clk 0:00:11]} 122. Kf2 {[%clk 0:00:24]}  Rb1 {[%clk 0:00:12]} 123. Rd8+ {[%clk 0:00:24]}  Ke5 {[%clk 0:00:12]} 124. Rd2 {[%clk 0:00:24]}  Ke4 {[%clk 0:00:12]} 125. Ra2 {[%clk 0:00:24]} 1/2-1/2


[Site "https://www.chess.com"]